fUSD/lending_fUSD_20240829
["ID","MTS","AMOUNT","RATE_DAILY","PERIOD"]
[336613707,1724975434707,-500.0,0.00010999,2]
[336613708,1724975434717,-81.22603575,0.00010999,2]
[336613709,1724975434729,-418.77396425,0.00010999,2]
[336613710,1724975434739,-265.94511841,0.00010999,2]
[336613711,1724975435052,-234.05488159,0.00010999,2]
[336613712,1724975435096,-500.0,0.00010999,2]
[336613713,1724975435112,-500.0,0.00010999,2]
[336613714,1724975435123,-200.0,0.00010999,2]
[336613715,1724975435133,-500.0,0.00010999,2]
[336613716,1724975435143,-500.0,0.00010999,2]
[336613717,1724975435153,-500.0,0.00010999,2]
[336613718,1724975435162,-500.0,0.00010999,2]
[336613719,1724975435172,-500.0,0.00010999,2]
[336613720,1724975435181,-500.0,0.00010999,2]
[336613721,1724975435190,-500.0,0.00010999,2]
[336613722,1724975435200,-500.0,0.00010999,2]
[336613723,1724975435208,-500.0,0.00010999,2]
[336613724,1724975435218,-500.0,0.00010999,2]
[336613725,1724975435227,-500.0,0.00010999,2]
[336613726,1724975435236,-500.0,0.00010999,2]
[336613727,1724975435246,-500.0,0.00010999,2]
[336613728,1724975435255,-500.0,0.00010999,2]
[336613729,1724975435264,-500.0,0.00010999,2]
[336613730,1724975435274,-500.0,0.00010999,2]
[336613731,1724975435283,-500.0,0.00010999,2]
[336613732,1724975435294,-500.0,0.00010999,2]
[336613733,1724975435303,-500.0,0.00010999,2]
[336613734,1724975435312,-500.0,0.00010999,2]
[336613735,1724975435322,-500.0,0.00010999,2]
[336613736,1724975435333,-638.10096343,0.00010999,2]
[336613737,1724975435343,-42737.42705814,0.00011,2]
[336613738,1724975436179,-516.47725402,0.00011,2]
[336613739,1724975436191,-8311.72992793,0.00011,2]
[336613740,1724975436203,-2053.25173375,0.00011,2]
[336613741,1724975436216,-994.87575444,0.00011,2]
[336613742,1724975436227,-1991.81902353,0.00011,2]
[336613743,1724975436238,-865.31617129,0.00011,2]
[336613744,1724975436250,-19365.12730444,0.00011,2]
[336613745,1724975436261,-40550.89188703,0.00011,2]
[336613748,1724975438235,-215.29269073,0.00010997,2]
[336613749,1724975438245,-404.70730927,0.00011,2]
[336613750,1724975438257,-329.43847413,0.00011,2]
[336613751,1724975438269,-563.31326908,0.00011,2]
[336613752,1724975438281,-428.61941707,0.00011,2]
[336613753,1724975438343,-7293.58596012,0.00011,2]
[336613754,1724975438357,-8233.67288528,0.00011,2]
[336613755,1724975438396,-7457.2856901,0.00011,2]
[336613756,1724975438451,-655.43194,0.00011,2]
[336613757,1724975438464,-6022.5791488,0.00011,2]
[336613758,1724975438507,-815.95389917,0.00011,2]
[336613759,1724975438518,-867.57638522,0.00011,2]
[336613760,1724975438529,-1114.47748706,0.00011,2]
[336613761,1724975438561,-2679.975109,0.00011,2]
[336613762,1724975438573,-815.0,0.00011,2]
[336613911,1724975440138,-891.51412651,0.00011,2]
[336613913,1724975440149,-644.10641409,0.00011,2]
[336613917,1724975440184,-3685.40636476,0.00011,2]
[336613919,1724975440194,-1730.84596,0.00011,2]
[336613921,1724975440205,-42222.75,0.00011,2]
[336613923,1724975440216,-232150.01264231,0.00011,2]
[336613925,1724975440227,-392.85540526,0.00011,2]
[336613927,1724975440245,-7004.4975025,0.00011,2]
[336613929,1724975440255,-15240.96322548,0.00011,2]
[336613934,1724975440299,-402.06657865,0.00011,2]
[336613939,1724975440360,-1337682.40132901,0.00011,2]
[336613941,1724975440371,-24001.74223655,0.00011,2]
[336613943,1724975440382,-678.75769103,0.00011,2]
[336613945,1724975440396,-607.5499219,0.00011,2]
[336613947,1724975440408,-495547.81071485,0.00011,2]
[336613949,1724975440418,-2294.52,0.00011,2]
[336613951,1724975440429,-555.0,0.00011099,2]
[336613953,1724975440438,-196.56,0.00011652,2]
[336613955,1724975440448,-250.0,0.00012,2]
[336613956,1724975440457,-499.99,0.00012,2]
[336613958,1724975440467,-420.0,0.00012076,2]
[336613960,1724975440476,-475.26,0.00012253,2]
[336613962,1724975440485,-153.59,0.00012438,2]
[336613963,1724975440494,-24334.54681104,0.00012448,2]
[336613965,1724975440502,-160.0,0.0001245,2]
[336613967,1724975440512,-150.0,0.0001245,2]
[336613969,1724975440521,-250.0,0.00012476,2]
[336613970,1724975440530,-4917.78,0.00012703,2]
[336613972,1724975440539,-1737.72824884,0.0001289,2]
[336613974,1724975440548,-696.48,0.00012925,2]
[336613976,1724975440557,-1000.0,0.00013066,2]
[336613978,1724975440565,-164.46,0.00013216,2]
[336613980,1724975440574,-211.47,0.00013216,2]
[336613982,1724975440585,-1475.17427,0.0001335,2]
[336613983,1724975440594,-1500.0,0.00013761,2]
[336613985,1724975440603,-631.27958502,0.00013873,2]
[336613987,1724975440612,-500.0,0.00013873,2]
[336613988,1724975440621,-500.0,0.00013873,2]
[336613990,1724975440631,-150.0,0.00013882,2]
[336613992,1724975440640,-201.78608961,0.00013896,2]
[336613994,1724975440648,-240607.006136,0.000139,2]
[336613996,1724975440658,-24334.54681104,0.00013996,2]
[336613997,1724975440667,-169.87,0.0001402,2]
[336613999,1724975440675,-169.87,0.00014055,2]
[336614001,1724975440685,-170.19,0.00014072,2]
[336614003,1724975440695,-9045.0,0.00014072,2]
[336614004,1724975440704,-169.87,0.0001409,2]
[336614006,1724975440713,-187.25,0.00014409,2]
[336614008,1724975440722,-1000.0,0.00014421,2]
[336614010,1724975440731,-432.52,0.00014421,2]
[336614012,1724975440739,-475.26,0.00014517,2]
[336614013,1724975440749,-160.0,0.00014525,2]
[336614015,1724975440758,-23900.0,0.00014598,2]
[336614017,1724975440767,-1000.0,0.00014699,2]
[336614019,1724975440776,-1737.72824884,0.0001488,2]
[336614021,1724975440785,-3193.0,0.00015,2]
[336614023,1724975440794,-882.0,0.00015,2]
[336614025,1724975440803,-2006.26,0.00015239,2]
[336614027,1724975440813,-1000.0,0.00015319,2]
[336614029,1724975440822,-150.71639531,0.00015425,2]
[336614031,1724975440834,-464.05,0.00015445,2]
[336614033,1724975440843,-250.0,0.00015445,2]
[336614035,1724975440853,-24334.54681104,0.00015544,2]
[336614036,1724975440861,-1475.17427,0.0001585,2]
[336614038,1724975440871,-200.0,0.00016174,2]
[336614040,1724975440880,-1000.0,0.00016332,2]
[336614042,1724975440889,-3841.21,0.00016438,2]
[336614044,1724975440898,-160.0,0.000166,2]
[336614046,1724975440907,-475.26,0.00016781,2]
[336614048,1724975440918,-1737.72824884,0.0001687,2]
[336614050,1724975440927,-440.3831,0.00016904,2]
[336614051,1724975440937,-24334.54681104,0.00017092,2]
[336614053,1724975440946,-173.77,0.00017311,2]
[336614055,1724975440956,-272.0,0.00017488,2]
[336614057,1724975440965,-250.0,0.0001777,2]
[336614059,1724975440974,-179.08401674,0.00017866,2]
[336614061,1724975440983,-1000.0,0.00017965,2]
[336614063,1724975440992,-696.48,0.00018095,2]
[336614065,1724975441002,-1475.17427,0.0001835,2]
[336614067,1724975441012,-24334.54681104,0.00018639,2]
[336614068,1724975441021,-160.0,0.00018675,2]
[336614070,1724975441031,-322.75214824,0.00018717,2]
[336614072,1724975441041,-1737.72824884,0.00018861,2]
[336614074,1724975441050,-475.26,0.00019045,2]
[336614076,1724975441059,-40269.42,0.000195,2]
[336614078,1724975441069,-1000.0,0.00019598,2]
[336614080,1724975441079,-272.0,0.00019673,2]
[336614082,1724975441091,-585.0,0.0002,2]
[336614084,1724975441101,-744.0,0.0002018,2]
[336614086,1724975441110,-24334.54681104,0.00020187,2]
[336614087,1724975441120,-1475.17427,0.0002085,2]
[336614089,1724975441129,-1737.72824884,0.00020851,2]
[336614091,1724975441139,-475.26,0.00021309,2]
[336614093,1724975441149,-884.18,0.00021589,30]
[336614095,1724975441158,-500.0,0.0002172,2]
[336614097,1724975441168,-24334.54681104,0.00021735,2]
[336614099,1724975441177,-272.0,0.00021859,2]
[336614100,1724975441187,-1052.3,0.00021918,2]
[336614102,1724975441197,-744.28,0.00021918,2]
[336614104,1724975441207,-3000.0,0.000222,2]
[336614106,1724975441216,-40269.42,0.000222,7]
[336614108,1724975441226,-2289.98,0.00022219,2]
[336614110,1724975441235,-2289.98,0.00022219,2]
[336614111,1724975441244,-2289.98,0.00022219,2]
[336614113,1724975441254,-2289.98,0.00022219,2]
[336614115,1724975441264,-2289.98,0.00022219,2]
[336614117,1724975441274,-2289.98,0.00022219,2]
[336614119,1724975441283,-2289.98,0.00022219,2]
[336614121,1724975441293,-2289.98,0.00022219,2]
[336614123,1724975441302,-2289.98,0.00022219,2]
[336614125,1724975441312,-2289.98,0.00022219,2]
[336614127,1724975441321,-2289.98,0.00022219,2]
[336614128,1724975441330,-2289.98,0.00022219,2]
[336614130,1724975441340,-2289.98,0.00022219,2]
[336614132,1724975441350,-2289.98,0.00022219,2]
[336614134,1724975441362,-2289.98,0.00022219,2]
[336614136,1724975441371,-2289.98,0.00022219,2]
[336614138,1724975441381,-2289.98,0.00022219,2]
[336614140,1724975441391,-2289.98,0.00022219,2]
[336614141,1724975441400,-2289.98,0.00022219,2]
[336614143,1724975441410,-2289.98,0.00022219,2]
[336614145,1724975441420,-2289.98,0.00022219,2]
[336614147,1724975441429,-2289.98,0.00022219,2]
[336614148,1724975441438,-2289.98,0.00022219,2]
[336614150,1724975441448,-2290.01603623,0.00022219,2]
[336614152,1724975441458,-1000.0,0.00022268,2]
[336614154,1724975441467,-150.0,0.00022495,2]
[336614155,1724975441476,-1737.72824884,0.00022841,2]
[336614157,1724975441485,-150.0,0.00023071,2]
[336614159,1724975441495,-582.26120928,0.00023166,2]
[336614161,1724975441505,-180.0,0.00023205,2]
[336614163,1724975441515,-208.82926497,0.00023273,2]
[336614165,1724975441526,-202.4485237,0.00023273,2]
[336614167,1724975441537,-200.95012989,0.00023273,2]
[336614169,1724975441547,-153.59,0.00023273,2]
[336614171,1724975441557,-153.59,0.00023273,2]
[336614173,1724975441567,-150.0,0.00023282,2]
[336614175,1724975441576,-150.0,0.00023282,7]
[336614203,1724975441911,-1565626.7669063,0.00023283,15]
[336614205,1724975441923,-24334.54681104,0.00023283,2]
[336614206,1724975441934,-2000.0,0.000233,2]
[336614207,1724975441945,-1475.17426,0.0002335,2]
[336614208,1724975441954,-1000.0,0.000235,2]
[336614209,1724975441963,-1000.0,0.000235,2]
[336614210,1724975441971,-475.26,0.00023573,2]
[336614211,1724975441981,-150.0,0.00023648,2]
[336614212,1724975441989,-2258.99999901,0.00024,2]
[336614213,1724975441998,-27125.0,0.00024,2]
[336614214,1724975442007,-272.0,0.00024045,2]
[336614215,1724975442016,-150.083008,0.00024098,4]
[336614216,1724975442025,-150.083008,0.00024098,4]
[336614217,1724975442034,-617.47628885,0.000241,2]
[336614218,1724975442042,-40269.42,0.000241,7]
[336614219,1724975442051,-150.0,0.0002411,2]
[336614220,1724975442060,-150.0,0.0002411,2]
[336614221,1724975442069,-150.0,0.0002411,2]
[336614222,1724975442078,-150.0,0.0002411,2]
[336614223,1724975442087,-150.0,0.0002411,2]
[336614224,1724975442096,-150.0,0.0002411,2]
[336614225,1724975442105,-150.0,0.0002411,2]
[336614226,1724975442114,-150.0,0.0002411,2]
[336614228,1724975442123,-151.15,0.0002411,2]
[336614229,1724975442133,-150.083008,0.00024198,3]
[336614231,1724975442142,-150.083008,0.00024198,3]
[336614233,1724975442151,-150.0,0.00024225,2]
[336614235,1724975442160,-500.0,0.00024227,2]
[336614237,1724975442170,-500.0,0.00024236,2]
[336614239,1724975442179,-500.0,0.00024244,2]
[336614241,1724975442188,-500.0,0.00024253,2]
[336614242,1724975442197,-500.0,0.00024262,2]
[336614244,1724975442206,-500.0,0.00024271,2]
[336614246,1724975442216,-500.0,0.0002428,2]
[336614248,1724975442225,-500.0,0.00024288,2]
[336614250,1724975442234,-500.0,0.00024297,2]
[336614252,1724975442244,-150.083008,0.00024298,5]
[336614254,1724975442253,-150.083008,0.00024298,5]
[336614256,1724975442262,-35000.0,0.00024298,2]
[336614258,1724975442272,-500.0,0.00024306,2]
[336614259,1724975442281,-500.0,0.00024315,2]
[336614261,1724975442290,-500.0,0.00024324,2]
[336614263,1724975442299,-500.0,0.00024332,2]
[336614265,1724975442309,-500.0,0.00024341,2]
[336614267,1724975442318,-500.0,0.0002435,2]
[336614269,1724975442328,-500.0,0.00024359,2]
[336614271,1724975442338,-500.0,0.00024368,2]
[336614273,1724975442347,-500.0,0.00024376,2]
[336614275,1724975442359,-500.0,0.00024385,2]
[336614276,1724975442368,-150.083008,0.00024398,4]
[336614278,1724975442377,-150.083008,0.00024398,4]
[336614280,1724975442386,-2283.0,0.000244,8]
[336614282,1724975442396,-150.083008,0.00024448,5]
[336614284,1724975442405,-92283.71258948,0.0002448,2]
[336614286,1724975442414,-150.083008,0.00024498,3]
[336614288,1724975442423,-150.083008,0.00024498,3]
[336614290,1724975442434,-150.083008,0.00024548,4]
[336614291,1724975442443,-150.083008,0.00024548,4]
[336614292,1724975442452,-500.0,0.00024568,2]
[336614293,1724975442461,-500.0,0.00024577,2]
[336614294,1724975442471,-500.0,0.00024585,2]
[336614295,1724975442479,-500.0,0.00024594,2]
[336614296,1724975442488,-500.0,0.00024603,2]
[336614297,1724975442497,-500.0,0.00024612,2]
[336614298,1724975442506,-1500.0,0.0002462,2]
[336614299,1724975442515,-500.0,0.00024621,2]
[336614300,1724975442524,-500.0,0.00024629,2]
[336614301,1724975442533,-500.0,0.00024638,2]
[336614302,1724975442542,-500.0,0.00024647,2]
[336614303,1724975442551,-500.0,0.00024656,2]
[336614305,1724975442561,-150.0,0.00024656,7]
[336614307,1724975442569,-1856.63,0.00024657,4]
[336614309,1724975442579,-524.53703788,0.00024657,4]
[336614311,1724975442589,-500.0,0.00024657,2]
[336614312,1724975442597,-500.0,0.00024657,4]
[336614314,1724975442607,-500.0,0.00024657,4]
[336614316,1724975442616,-500.0,0.00024657,4]
[336614318,1724975442625,-597.23645183,0.00024657,4]
[336614320,1724975442635,-528.99541033,0.00024657,4]
[336614322,1724975442644,-520.21791874,0.00024657,4]
[336614324,1724975442653,-193.22676941,0.00024657,4]
[336614326,1724975442662,-509.19721423,0.00024657,4]
[336614328,1724975442671,-500.0,0.00024657,4]
[336614330,1724975442680,-519.62496283,0.00024657,4]
[336614331,1724975442689,-511.9473304,0.00024657,4]
[336614332,1724975442698,-512.39307542,0.00024657,4]
[336614333,1724975442707,-500.0,0.00024657,4]
[336614334,1724975442716,-500.0,0.00024657,4]
[336614335,1724975442725,-500.0,0.00024657,4]
[336614336,1724975442735,-510.22859872,0.00024657,4]
[336614337,1724975442744,-500.0,0.00024657,4]
[336614338,1724975442753,-500.0,0.00024657,4]
[336614339,1724975442762,-500.0,0.00024657,4]
[336614340,1724975442771,-500.0,0.00024657,4]
[336614341,1724975442781,-501.60033754,0.00024657,4]
[336614342,1724975442790,-500.0,0.00024657,4]
[336614343,1724975442799,-500.0,0.00024657,4]
[336614344,1724975442809,-500.0,0.00024657,4]
[336614345,1724975442818,-500.0,0.00024657,4]
[336614346,1724975442827,-500.0,0.00024657,4]
[336614347,1724975442837,-601.05220881,0.00024657,4]
[336614348,1724975442846,-500.0,0.00024657,4]
[336614349,1724975442856,-500.0,0.00024657,4]
[336614350,1724975442865,-500.0,0.00024657,4]
[336614351,1724975442874,-530.86462885,0.00024657,4]
[336614352,1724975442883,-385.47205069,0.00024657,4]
[336614353,1724975442893,-500.0,0.00024657,4]
[336614354,1724975442902,-517.95356673,0.00024657,4]
[336614356,1724975442910,-342.48761112,0.00024657,4]
[336614358,1724975442920,-500.0,0.00024657,4]
[336614360,1724975442929,-506.36204442,0.00024657,4]
[336614361,1724975442938,-500.0,0.00024657,4]
[336614362,1724975442947,-500.0,0.00024657,4]
[336614363,1724975442956,-500.0,0.00024657,4]
[336614364,1724975442965,-500.0,0.00024657,4]
[336614365,1724975442974,-500.0,0.00024657,4]
[336614366,1724975442983,-500.0,0.00024657,4]
[336614367,1724975442992,-500.0,0.00024657,4]
[336614368,1724975443002,-500.0,0.00024657,4]
[336614369,1724975443011,-500.0,0.00024657,4]
[336614370,1724975443019,-500.0,0.00024657,4]
[336614371,1724975443028,-500.0,0.00024657,4]
[336614372,1724975443038,-500.0,0.00024657,4]
[336614373,1724975443047,-500.0,0.00024657,4]
[336614374,1724975443056,-500.0,0.00024657,4]
[336614375,1724975443065,-500.0,0.00024657,4]
[336614376,1724975443074,-500.0,0.00024657,4]
[336614377,1724975443084,-500.0,0.00024657,4]
[336614378,1724975443093,-500.0,0.00024657,4]
[336614379,1724975443102,-500.0,0.00024657,4]
[336614380,1724975443111,-500.0,0.00024657,4]
[336614381,1724975443119,-500.0,0.00024657,4]
[336614382,1724975443129,-500.0,0.00024657,4]
[336614383,1724975443138,-500.0,0.00024657,4]
[336614384,1724975443147,-500.0,0.00024657,4]
[336614385,1724975443156,-500.0,0.00024657,4]
[336614386,1724975443166,-500.0,0.00024657,4]
[336614387,1724975443175,-500.0,0.00024657,4]
[336614388,1724975443184,-500.0,0.00024657,4]
[336614389,1724975443194,-500.0,0.00024657,4]
[336614390,1724975443203,-500.0,0.00024657,4]
[336614391,1724975443212,-500.0,0.00024657,4]
[336614392,1724975443221,-500.0,0.00024657,4]
[336614393,1724975443230,-500.0,0.00024657,4]
[336614394,1724975443239,-500.0,0.00024657,4]
[336614395,1724975443249,-500.0,0.00024657,4]
[336614396,1724975443258,-500.0,0.00024657,4]
[336614397,1724975443268,-500.0,0.00024657,4]
[336614398,1724975443277,-500.0,0.00024657,4]
[336614399,1724975443286,-500.0,0.00024657,4]
[336614400,1724975443295,-500.0,0.00024657,4]
[336614401,1724975443305,-500.0,0.00024657,4]
[336614402,1724975443314,-500.0,0.00024657,4]
[336614403,1724975443323,-500.0,0.00024657,4]
[336614404,1724975443332,-500.0,0.00024657,4]
[336614405,1724975443342,-500.0,0.00024657,4]
[336614406,1724975443351,-500.0,0.00024657,4]
[336614407,1724975443365,-500.0,0.00024657,4]
[336614408,1724975443374,-500.0,0.00024657,4]
[336614409,1724975443384,-500.0,0.00024657,4]
[336614410,1724975443393,-500.0,0.00024657,4]
[336614411,1724975443403,-500.0,0.00024657,4]
[336614412,1724975443412,-500.0,0.00024657,4]
[336614413,1724975443421,-500.0,0.00024657,4]
[336614414,1724975443431,-271.24698228,0.00024657,4]
[336614415,1724975443441,-500.0,0.00024657,4]
[336614416,1724975443450,-500.0,0.00024657,4]
[336614417,1724975443459,-500.0,0.00024657,4]
[336614418,1724975443468,-500.0,0.00024657,4]
[336614419,1724975443478,-500.0,0.00024657,4]
[336614420,1724975443487,-500.0,0.00024657,4]
[336614421,1724975443498,-192.12,0.00024657,4]
[336614422,1724975443507,-500.0,0.00024657,4]
[336614424,1724975443518,-500.0,0.00024657,4]
[336614426,1724975443527,-500.0,0.00024657,4]
[336614427,1724975443536,-500.0,0.00024657,4]
[336614429,1724975443546,-500.0,0.00024657,4]
[336614431,1724975443555,-500.0,0.00024657,4]
[336614433,1724975443564,-500.0,0.00024657,4]
[336614435,1724975443573,-500.0,0.00024657,4]
[336614438,1724975443582,-500.0,0.00024657,4]
[336614439,1724975443592,-500.0,0.00024657,4]
[336614441,1724975443601,-500.0,0.00024657,4]
[336614443,1724975443610,-508.40761261,0.00024657,4]
[336614445,1724975443620,-500.0,0.00024657,4]
[336614447,1724975443629,-500.0,0.00024657,4]
[336614449,1724975443637,-500.0,0.00024657,4]
[336614451,1724975443647,-500.0,0.00024657,4]
[336614453,1724975443656,-500.0,0.00024657,4]
[336614455,1724975443665,-500.0,0.00024657,4]
[336614457,1724975443674,-500.0,0.00024657,4]
[336614459,1724975443683,-500.0,0.00024657,4]
[336614461,1724975443692,-500.0,0.00024657,4]
[336614463,1724975443701,-500.0,0.00024657,4]
[336614465,1724975443710,-500.0,0.00024657,4]
[336614467,1724975443719,-500.0,0.00024657,4]
[336614469,1724975443729,-500.0,0.00024657,4]
[336614470,1724975443738,-500.0,0.00024657,4]
[336614471,1724975443748,-500.0,0.00024657,4]
[336614472,1724975443757,-500.0,0.00024657,4]
[336614473,1724975443766,-500.0,0.00024657,4]
[336614474,1724975443775,-500.0,0.00024657,4]
[336614475,1724975443783,-298.59346573,0.00024657,4]
[336614476,1724975443793,-500.0,0.00024657,4]
[336614477,1724975443802,-500.0,0.00024657,4]
[336614478,1724975443811,-500.0,0.00024657,4]
[336614479,1724975443819,-500.0,0.00024657,4]
[336614480,1724975443829,-500.0,0.00024657,4]
[336614481,1724975443841,-500.0,0.00024657,4]
[336614482,1724975443856,-500.0,0.00024657,4]
[336614483,1724975443866,-500.0,0.00024657,4]
[336614484,1724975443875,-500.0,0.00024657,4]
[336614485,1724975443884,-500.0,0.00024657,4]
[336614486,1724975443894,-500.0,0.00024657,4]
[336614487,1724975443906,-643.63321372,0.00024657,4]
[336614488,1724975443915,-500.0,0.00024657,4]
[336614489,1724975443924,-500.0,0.00024657,4]
[336614490,1724975443933,-500.0,0.00024657,4]
[336614491,1724975443943,-270.12,0.00024657,4]
[336614492,1724975443953,-500.0,0.00024657,4]
[336614493,1724975443962,-500.0,0.00024657,4]
[336614494,1724975443971,-500.0,0.00024657,4]
[336614495,1724975443980,-500.0,0.00024657,4]
[336614496,1724975443990,-500.0,0.00024657,4]
[336614497,1724975444000,-500.0,0.00024657,4]
[336614498,1724975444009,-500.0,0.00024657,4]
[336614499,1724975444019,-500.0,0.00024657,4]
[336614500,1724975444028,-500.0,0.00024657,4]
[336614501,1724975444038,-500.0,0.00024657,4]
[336614502,1724975444047,-500.0,0.00024657,4]
[336614503,1724975444057,-500.0,0.00024657,4]
[336614504,1724975444066,-500.0,0.00024657,4]
[336614505,1724975444076,-500.0,0.00024657,4]
[336614506,1724975444086,-500.0,0.00024657,4]
[336614507,1724975444095,-571.04142214,0.00024657,4]
[336614508,1724975444104,-500.0,0.00024657,4]
[336614509,1724975444114,-500.0,0.00024657,4]
[336614510,1724975444123,-500.0,0.00024657,4]
[336614511,1724975444134,-500.0,0.00024657,4]
[336614512,1724975444144,-500.0,0.00024657,4]
[336614513,1724975444153,-500.0,0.00024657,4]
[336614514,1724975444163,-500.0,0.00024657,4]
[336614515,1724975444172,-500.0,0.00024657,4]
[336614516,1724975444182,-500.0,0.00024657,4]
[336614517,1724975444191,-500.0,0.00024657,4]
[336614518,1724975444201,-500.0,0.00024657,4]
[336614519,1724975444210,-500.0,0.00024657,4]
[336614520,1724975444219,-500.0,0.00024657,4]
[336614521,1724975444229,-500.0,0.00024657,4]
[336614522,1724975444238,-500.0,0.00024657,4]
[336614523,1724975444247,-500.0,0.00024657,4]
[336614524,1724975444257,-500.0,0.00024657,4]
[336614525,1724975444266,-500.0,0.00024657,4]
[336614526,1724975444276,-500.0,0.00024657,4]
[336614527,1724975444285,-500.0,0.00024657,4]
[336614528,1724975444294,-500.0,0.00024657,4]
[336614529,1724975444304,-500.0,0.00024657,4]
[336614530,1724975444313,-500.0,0.00024657,4]
[336614531,1724975444322,-500.0,0.00024657,4]
[336614532,1724975444331,-500.0,0.00024657,4]
[336614533,1724975444346,-500.0,0.00024657,4]
[336614534,1724975444358,-500.0,0.00024657,4]
[336614535,1724975444368,-500.0,0.00024657,4]
[336614536,1724975444378,-580.4897633,0.00024657,4]
[336614537,1724975444388,-500.0,0.00024657,4]
[336614538,1724975444397,-500.0,0.00024657,4]
[336614539,1724975444408,-500.0,0.00024657,4]
[336614540,1724975444417,-500.0,0.00024657,4]
[336614541,1724975444427,-500.0,0.00024657,4]
[336614542,1724975444439,-500.0,0.00024657,4]
[336614543,1724975444448,-500.0,0.00024657,4]
[336614544,1724975444457,-500.0,0.00024657,4]
[336614545,1724975444467,-500.0,0.00024657,4]
[336614546,1724975444476,-500.0,0.00024657,4]
[336614547,1724975444485,-500.0,0.00024657,4]
[336614548,1724975444495,-500.0,0.00024657,4]
[336614549,1724975444504,-500.0,0.00024657,4]
[336614550,1724975444513,-500.0,0.00024657,4]
[336614551,1724975444522,-500.0,0.00024657,4]
[336614552,1724975444531,-500.0,0.00024657,4]
[336614553,1724975444541,-500.0,0.00024657,4]
[336614554,1724975444550,-500.0,0.00024657,4]
[336614555,1724975444559,-500.0,0.00024657,4]
[336614556,1724975444568,-500.0,0.00024657,4]
[336614557,1724975444577,-500.0,0.00024657,4]
[336614558,1724975444587,-500.0,0.00024657,4]
[336614559,1724975444596,-500.0,0.00024657,4]
[336614560,1724975444605,-500.0,0.00024657,4]
[336614561,1724975444614,-500.0,0.00024657,4]
[336614562,1724975444623,-500.0,0.00024657,4]
[336614563,1724975444632,-500.0,0.00024657,4]
[336614564,1724975444641,-500.0,0.00024657,4]
[336614565,1724975444650,-500.0,0.00024657,4]
[336614566,1724975444659,-500.0,0.00024657,4]
[336614567,1724975444668,-500.0,0.00024657,4]
[336614568,1724975444677,-500.0,0.00024657,4]
[336614569,1724975444686,-500.0,0.00024657,4]
[336614570,1724975444695,-500.0,0.00024657,4]
[336614571,1724975444704,-500.0,0.00024657,4]
[336614572,1724975444713,-500.0,0.00024657,4]
[336614573,1724975444722,-500.0,0.00024657,4]
[336614574,1724975444731,-500.0,0.00024657,4]
[336614575,1724975444740,-500.0,0.00024657,4]
[336614576,1724975444749,-620.2798328,0.00024657,4]
[336614577,1724975444759,-500.0,0.00024657,4]
[336614578,1724975444768,-500.0,0.00024657,4]
[336614579,1724975444777,-500.0,0.00024657,4]
[336614580,1724975444786,-500.0,0.00024657,4]